fUST/lending_fUST_20250925
["ID","MTS","AMOUNT","RATE_DAILY","PERIOD"]
[387477185,1758741039599,-480.0,0.00019178,2]
[387477186,1758741039609,-482.53311514,0.00019178,2]
[387477187,1758741039619,-497.55366561,0.00019178,2]
[387477188,1758741039628,-501.52246738,0.00019178,2]
[387477189,1758741039638,-480.0,0.00019178,2]
[387477190,1758741039647,-480.0,0.00019178,2]
[387477191,1758741039657,-480.0,0.00019178,2]
[387477192,1758741039667,-480.0,0.00019178,2]
[387477193,1758741039676,-480.0,0.00019178,2]
[387477194,1758741039685,-480.76422471,0.00019178,2]
[387477195,1758741039695,-480.0,0.00019178,2]
[387477196,1758741039704,-197.67458263,0.00019178,2]
[387477197,1758741039714,-484.1518559,0.00019178,2]
[387477198,1758741039723,-480.0,0.00019178,2]
[387477199,1758741039733,-483.92151366,0.00019178,2]
[387477200,1758741039742,-278.29296045,0.00019178,2]
[387477201,1758741039751,-396.98499653,0.00019178,2]
[387477203,1758741039766,-83.01500347,0.00019178,2]
[387477205,1758741039775,-480.0,0.00019178,2]
[387477207,1758741039785,-480.0,0.00019178,2]
[387477209,1758741039794,-480.0,0.00019178,2]
[387477211,1758741039803,-480.0,0.00019178,2]
[387477213,1758741039812,-480.0,0.00019178,2]
[387477215,1758741039821,-480.0,0.00019178,2]
[387477217,1758741039830,-480.0,0.00019178,2]
[387477219,1758741039839,-480.0,0.00019178,2]
[387477221,1758741039848,-480.0,0.00019178,2]
[387477223,1758741039858,-480.0,0.00019178,2]
[387477225,1758741039867,-523.25912314,0.00019178,2]
[387477227,1758741039876,-480.0,0.00019178,2]
[387477229,1758741039886,-480.0,0.00019178,2]
[387477231,1758741039895,-485.33090134,0.00019178,2]
[387477233,1758741039904,-480.0,0.00019178,2]
[387477235,1758741039914,-480.0,0.00019178,2]
[387477237,1758741039924,-480.0,0.00019178,2]
[387477239,1758741039934,-548.23,0.00019178,2]
[387477241,1758741039943,-480.0,0.00019178,2]
[387477243,1758741039952,-480.0,0.00019178,2]
[387477245,1758741039963,-480.0,0.00019178,2]
[387477247,1758741039971,-500.0,0.00019178,2]
[387477249,1758741039981,-480.0,0.00019178,2]
[387477251,1758741039990,-480.0,0.00019178,2]
[387477253,1758741040000,-480.0,0.00019178,2]
[387477255,1758741040009,-480.0,0.00019178,2]
[387477257,1758741040018,-480.0,0.00019178,2]
[387477259,1758741040028,-479.62865664,0.00019178,2]
[387477261,1758741040037,-480.0,0.00019178,2]
[387477263,1758741040046,-188.4600697,0.00019178,2]
[387477265,1758741040055,-480.0,0.00019178,2]
[387477267,1758741040064,-480.0,0.00019178,2]
[387477269,1758741040073,-606.7965149,0.00019178,2]
[387477271,1758741040082,-480.0,0.00019178,2]
[387477273,1758741040091,-480.0,0.00019178,2]
[387477275,1758741040101,-480.0,0.00019178,2]
[387477277,1758741040110,-480.0,0.00019178,2]
[387477279,1758741040119,-480.0,0.00019178,2]
[387477281,1758741040128,-480.0,0.00019178,2]
[387477283,1758741040137,-480.0,0.00019178,2]
[387477285,1758741040147,-480.0,0.00019178,2]
[387477287,1758741040158,-480.0,0.00019178,2]
[387477289,1758741040167,-480.0,0.00019178,2]
[387477291,1758741040176,-480.0,0.00019178,2]
[387477293,1758741040186,-480.0,0.00019178,2]
[387477294,1758741040195,-480.0,0.00019178,2]
[387477297,1758741040205,-480.0,0.00019178,2]
[387477299,1758741040214,-480.0,0.00019178,2]
[387477301,1758741040224,-466.2589212,0.00019178,2]
[387477303,1758741040234,-480.0,0.00019178,2]
[387477305,1758741040243,-480.0,0.00019178,2]
[387477307,1758741040253,-401.347651,0.00019178,2]
[387477308,1758741040263,-480.0,0.00019178,2]
[387477310,1758741040272,-480.0,0.00019178,2]
[387477312,1758741040281,-480.0,0.00019178,2]
[387477314,1758741040291,-230.74040021,0.00019178,2]
[387477315,1758741040301,-481.21593913,0.00019178,2]
[387477317,1758741040311,-480.0,0.00019178,2]
[387477320,1758741040320,-480.0,0.00019178,2]
[387477322,1758741040330,-480.0,0.00019178,2]
[387477324,1758741040339,-480.0,0.00019178,2]
[387477326,1758741040348,-480.0,0.00019178,2]
[387477328,1758741040358,-480.0,0.00019178,2]
[387477330,1758741040367,-480.0,0.00019178,2]
[387477332,1758741040381,-480.0,0.00019178,2]
[387477334,1758741040391,-480.0,0.00019178,2]
[387477336,1758741040400,-480.0,0.00019178,2]
[387477338,1758741040409,-480.0,0.00019178,2]
[387477340,1758741040420,-480.0,0.00019178,2]
[387477342,1758741040430,-480.0,0.00019178,2]
[387477344,1758741040439,-480.0,0.00019178,2]
[387477346,1758741040448,-480.0,0.00019178,2]
[387477348,1758741040458,-480.0,0.00019178,2]
[387477350,1758741040470,-480.0,0.00019178,2]
[387477352,1758741040479,-480.0,0.00019178,2]
[387477354,1758741040488,-480.0,0.00019178,2]
[387477356,1758741040498,-480.0,0.00019178,2]
[387477358,1758741040508,-559.34915716,0.00019178,2]
[387477360,1758741040518,-480.0,0.00019178,2]
[387477362,1758741040528,-480.0,0.00019178,2]
[387477364,1758741040537,-480.0,0.00019178,2]
[387477375,1758741040637,-480.0,0.00019178,2]
[387477377,1758741040648,-528.87,0.00019178,2]
[387477379,1758741040659,-480.0,0.00019178,2]
[387477381,1758741040668,-480.0,0.00019178,2]
[387477383,1758741040677,-480.0,0.00019178,2]
[387477385,1758741040687,-480.0,0.00019178,2]
[387477387,1758741040696,-480.0,0.00019178,2]
[387477389,1758741040705,-480.0,0.00019178,2]
[387477391,1758741040715,-506.95209841,0.00019178,2]
[387477393,1758741040724,-480.0,0.00019178,2]
[387477395,1758741040734,-480.0,0.00019178,2]
[387477397,1758741040743,-480.0,0.00019178,2]
[387477399,1758741040753,-480.0,0.00019178,2]
[387477401,1758741040762,-480.0,0.00019178,2]
[387477403,1758741040772,-480.0,0.00019178,2]
[387477405,1758741040781,-480.0,0.00019178,2]
[387477407,1758741040791,-480.0,0.00019178,2]
[387477409,1758741040800,-480.0,0.00019178,2]
[387477411,1758741040810,-480.0,0.00019178,2]
[387477413,1758741040820,-480.0,0.00019178,2]
[387477415,1758741040830,-480.0,0.00019178,2]
[387477417,1758741040839,-480.0,0.00019178,2]
[387477418,1758741040849,-480.0,0.00019178,2]
[387477420,1758741040858,-480.0,0.00019178,2]
[387477422,1758741040868,-480.0,0.00019178,2]
[387477424,1758741040877,-480.0,0.00019178,2]
[387477426,1758741040887,-480.0,0.00019178,2]
[387477428,1758741040896,-480.0,0.00019178,2]
[387477430,1758741040905,-480.0,0.00019178,2]
[387477432,1758741040914,-480.0,0.00019178,2]
[387477434,1758741040924,-480.0,0.00019178,2]
[387477436,1758741040933,-500.0,0.00019178,2]
[387477438,1758741040943,-222.14676982,0.00019273,2]
[387477440,1758741040953,-416.1915388,0.00019273,2]
[387477442,1758741040963,-538.32,0.00019341,3]
[387477444,1758741040972,-480.0,0.0001935,2]
[387477446,1758741040982,-480.0,0.0001935,2]
[387477448,1758741040991,-480.0,0.00019351,2]
[387477450,1758741041002,-500.0,0.00019351,2]
[387477452,1758741041011,-500.0,0.00019351,2]
[387477454,1758741041021,-500.0,0.00019351,2]
[387477456,1758741041031,-500.0,0.00019351,2]
[387477458,1758741041040,-500.0,0.00019351,2]
[387477460,1758741041050,-500.0,0.00019351,2]
[387477462,1758741041059,-500.0,0.00019351,2]
[387477464,1758741041069,-409.21249044,0.00019351,2]
[387477466,1758741041078,-480.0,0.00019351,2]
[387477468,1758741041088,-370000.0,0.00019352,2]
[387477470,1758741041097,-500.0,0.00019373,2]
[387477472,1758741041107,-505.68458982,0.00019373,2]
[387477474,1758741041115,-500.0,0.00019373,2]
[387477476,1758741041126,-500.0,0.00019373,2]
[387477478,1758741041134,-500.0,0.00019373,2]
[387477480,1758741041144,-512.91816341,0.00019452,2]
[387477482,1758741041153,-480.0,0.00019452,2]
[387477484,1758741041163,-480.0,0.00019452,2]
[387477486,1758741041173,-480.0,0.00019452,2]
[387477488,1758741041182,-300.95501238,0.00019452,2]
[387477490,1758741041191,-571.45379782,0.00019452,2]
[387477492,1758741041200,-480.0,0.00019452,2]
[387477494,1758741041209,-480.0,0.00019452,2]
[387477496,1758741041218,-480.0,0.00019452,2]
[387477498,1758741041228,-480.0,0.00019452,2]
[387477500,1758741041237,-200.03261799,0.00019452,2]
[387477502,1758741041245,-391.42073882,0.00019452,2]
[387477504,1758741041255,-480.0,0.00019452,2]
[387477506,1758741041264,-480.0,0.00019452,2]
[387477508,1758741041273,-628.55,0.00019452,2]
[387477510,1758741041283,-480.0,0.00019452,2]
[387477512,1758741041292,-480.0,0.00019452,2]
[387477513,1758741041302,-480.0,0.00019452,2]
[387477515,1758741041311,-482.08,0.00019452,2]
[387477517,1758741041320,-480.0,0.00019452,2]
[387477519,1758741041330,-480.0,0.00019452,2]
[387477521,1758741041339,-480.0,0.00019452,2]
[387477523,1758741041349,-500.0,0.00019452,2]
[387477525,1758741041358,-153.23641665,0.00019452,2]
[387477527,1758741041367,-480.0,0.00019452,2]
[387477529,1758741041379,-480.0,0.00019452,2]
[387477531,1758741041388,-480.0,0.00019452,2]
[387477533,1758741041397,-480.0,0.00019452,2]
[387477535,1758741041406,-480.0,0.00019452,2]
[387477537,1758741041415,-151.0,0.00019452,2]
[387477539,1758741041425,-480.0,0.00019452,2]
[387477541,1758741041434,-205.63281683,0.00019452,2]
[387477543,1758741041443,-151.0,0.00019452,2]
[387477545,1758741041453,-480.0,0.00019452,2]
[387477547,1758741041462,-516.04943425,0.00019452,2]
[387477549,1758741041471,-480.0,0.00019452,2]
[387477551,1758741041480,-480.0,0.00019452,2]
[387477552,1758741041492,-480.0,0.00019452,2]
[387477554,1758741041501,-480.0,0.00019452,2]
[387477556,1758741041510,-480.0,0.00019452,2]
[387477558,1758741041519,-480.0,0.00019452,2]
[387477560,1758741041528,-480.0,0.00019452,2]
[387477562,1758741041538,-480.0,0.00019452,2]
[387477564,1758741041547,-407.87,0.00019452,2]
[387477566,1758741041557,-480.0,0.00019452,2]
[387477568,1758741041566,-480.0,0.00019452,2]
[387477570,1758741041575,-480.0,0.00019452,2]
[387477572,1758741041585,-480.0,0.00019452,2]
[387477574,1758741041594,-596.92,0.00019452,2]
[387477576,1758741041603,-480.0,0.00019452,2]
[387477578,1758741041613,-480.0,0.00019452,2]
[387477580,1758741041622,-480.0,0.00019452,2]
[387477582,1758741041631,-252.3971773,0.00019452,2]
[387477584,1758741041641,-480.0,0.00019452,2]
[387477586,1758741041650,-480.0,0.00019452,2]
[387477588,1758741041659,-480.0,0.00019452,2]
[387477590,1758741041668,-480.0,0.00019452,2]
[387477592,1758741041677,-480.0,0.00019452,2]
[387477594,1758741041686,-480.0,0.00019452,2]
[387477596,1758741041695,-480.0,0.00019452,2]
[387477598,1758741041705,-480.0,0.00019452,2]
[387477600,1758741041714,-480.0,0.00019452,2]
[387477602,1758741041723,-480.0,0.00019452,2]
[387477604,1758741041733,-480.0,0.00019452,2]
[387477606,1758741041742,-480.0,0.00019452,2]
[387477608,1758741041752,-480.0,0.00019452,2]
[387477610,1758741041762,-480.0,0.00019452,2]
[387477612,1758741041772,-480.0,0.00019452,2]
[387477614,1758741041781,-480.0,0.00019452,2]
[387477616,1758741041791,-480.0,0.00019452,2]
[387477618,1758741041801,-480.0,0.00019452,2]
[387477620,1758741041810,-487.53045418,0.00019452,2]
[387477622,1758741041819,-480.0,0.00019452,2]
[387477624,1758741041828,-266.95,0.00019452,2]
[387477626,1758741041839,-480.0,0.00019452,2]
[387477628,1758741041848,-480.0,0.00019452,2]
[387477630,1758741041857,-480.0,0.00019452,2]
[387477632,1758741041866,-480.0,0.00019452,2]
[387477634,1758741041876,-480.0,0.00019452,2]
[387477636,1758741041886,-480.0,0.00019452,2]
[387477638,1758741041895,-480.0,0.00019452,2]
[387477640,1758741041904,-480.0,0.00019452,2]
[387477642,1758741041915,-480.0,0.00019452,2]
[387477644,1758741041924,-217.12332187,0.00019452,2]
[387477646,1758741041933,-480.0,0.00019452,2]
[387477648,1758741041942,-480.0,0.00019452,2]
[387477650,1758741041951,-480.0,0.00019452,2]
[387477652,1758741041960,-480.0,0.00019452,2]
[387477654,1758741041969,-480.0,0.00019452,2]
[387477656,1758741041987,-480.0,0.00019452,2]
[387477658,1758741041997,-480.0,0.00019452,2]
[387477660,1758741042006,-240.34,0.00019452,2]
[387477662,1758741042015,-480.0,0.00019452,2]
[387477664,1758741042024,-480.0,0.00019452,2]
[387477666,1758741042033,-480.0,0.00019452,2]
[387477668,1758741042042,-480.0,0.00019452,2]
[387477670,1758741042051,-480.0,0.00019452,2]
[387477672,1758741042060,-480.0,0.00019452,2]
[387477674,1758741042070,-480.0,0.00019452,2]
[387477676,1758741042079,-154.85913114,0.00019452,2]
[387477678,1758741042088,-480.0,0.00019452,2]
[387477680,1758741042097,-480.0,0.00019452,2]
[387477682,1758741042106,-480.0,0.00019452,2]
[387477684,1758741042114,-480.0,0.00019452,2]
[387477685,1758741042124,-480.0,0.00019452,2]
[387477686,1758741042133,-480.0,0.00019452,2]
[387477687,1758741042142,-480.0,0.00019452,2]
[387477688,1758741042151,-500.0,0.00019452,2]
[387477689,1758741042160,-500.0,0.00019473,2]
[387477690,1758741042169,-500.0,0.00019473,2]
[387477691,1758741042178,-500.0,0.00019473,2]
[387477692,1758741042187,-500.0,0.00019473,2]
[387477693,1758741042196,-500.0,0.00019473,2]
[387477694,1758741042205,-500.0,0.00019473,2]
[387477695,1758741042214,-500.0,0.00019473,2]
[387477696,1758741042224,-500.0,0.00019473,2]
[387477697,1758741042233,-503.15772695,0.00019473,2]
[387477698,1758741042242,-500.0,0.00019473,2]
[387477699,1758741042251,-480.0,0.00019624,2]
[387477700,1758741042262,-618.88,0.00019625,2]
[387477701,1758741042270,-480.0,0.00019625,2]
[387477702,1758741042279,-500.0,0.00019726,2]
[387477703,1758741042288,-151.0,0.00019726,2]
[387477704,1758741042297,-215.50605479,0.00019726,2]
[387477705,1758741042306,-480.0,0.00019726,2]
[387477706,1758741042315,-480.0,0.00019726,2]
[387477707,1758741042325,-480.0,0.00019726,2]
[387477708,1758741042334,-480.0,0.00019726,2]
[387477709,1758741042344,-161.88339452,0.00019726,2]
[387477710,1758741042353,-480.0,0.00019726,2]
[387477711,1758741042362,-480.0,0.00019726,2]
[387477712,1758741042374,-480.0,0.00019726,2]
[387477713,1758741042390,-533.71227796,0.00019726,2]
[387477714,1758741042399,-480.0,0.00019726,2]
[387477715,1758741042408,-480.0,0.00019726,2]
[387477716,1758741042418,-480.0,0.00019726,2]
[387477717,1758741042427,-488.44,0.00019726,2]
[387477718,1758741042436,-480.0,0.00019726,2]
[387477719,1758741042445,-480.0,0.00019726,2]
[387477720,1758741042456,-480.0,0.00019726,2]
[387477722,1758741042465,-480.0,0.00019726,2]
[387477723,1758741042474,-480.0,0.00019726,2]
[387477724,1758741042482,-480.0,0.00019726,2]
[387477725,1758741042491,-480.0,0.00019726,2]
[387477726,1758741042500,-480.0,0.00019726,2]
[387477728,1758741042511,-507.14026634,0.00019726,2]
[387477730,1758741042520,-615.88,0.00019726,2]
[387477732,1758741042529,-480.0,0.00019726,2]
[387477734,1758741042539,-480.0,0.00019726,2]
[387477736,1758741042548,-480.0,0.00019726,2]
[387477738,1758741042557,-480.0,0.00019726,2]
[387477740,1758741042567,-480.0,0.00019726,2]
[387477742,1758741042576,-480.0,0.00019726,2]
[387477744,1758741042585,-480.0,0.00019726,2]
[387477746,1758741042594,-480.0,0.00019726,2]
[387477748,1758741042604,-480.0,0.00019726,2]
[387477750,1758741042613,-530.62,0.00019726,2]
[387477752,1758741042622,-480.0,0.00019726,2]
[387477754,1758741042632,-480.0,0.00019726,2]
[387477756,1758741042641,-480.0,0.00019726,2]
[387477758,1758741042653,-393.6591999,0.00019726,2]
[387477760,1758741042662,-480.0,0.00019726,2]
[387477762,1758741042671,-480.0,0.00019726,2]
[387477764,1758741042680,-480.0,0.00019726,2]
[387477766,1758741042690,-480.0,0.00019726,2]
[387477768,1758741042699,-480.0,0.00019726,2]
[387477770,1758741042708,-480.0,0.00019726,2]
[387477772,1758741042718,-480.0,0.00019726,2]
[387477774,1758741042727,-480.0,0.00019726,2]
[387477776,1758741042736,-480.0,0.00019726,2]
[387477778,1758741042746,-480.0,0.00019726,2]
[387477780,1758741042755,-480.0,0.00019726,2]
[387477782,1758741042764,-480.0,0.00019726,2]
[387477784,1758741042773,-480.0,0.00019726,2]
[387477786,1758741042782,-480.0,0.00019726,2]
[387477788,1758741042792,-480.0,0.00019726,2]
[387477790,1758741042801,-480.0,0.00019726,2]
[387477792,1758741042813,-490.39641475,0.00019726,2]
[387477793,1758741042822,-480.0,0.00019726,2]
[387477795,1758741042832,-480.0,0.00019726,2]
[387477797,1758741042841,-480.0,0.00019726,2]
[387477799,1758741042850,-480.0,0.00019726,2]
[387477801,1758741042859,-480.0,0.00019726,2]
[387477812,1758741042950,-480.0,0.00019726,2]
[387477814,1758741042960,-480.0,0.00019726,2]
[387477816,1758741042969,-480.0,0.00019726,2]
[387477818,1758741042980,-480.0,0.00019726,2]
[387477820,1758741042989,-480.0,0.00019726,2]
[387477822,1758741043001,-500.0,0.00019773,2]
[387477824,1758741043011,-776.7162978,0.00019774,2]
[387477827,1758741043021,-480.0,0.00019898,2]
[387477829,1758741043031,-1742.91081964,0.000199,2]
[387477831,1758741043040,-564.3,0.00019921,2]
[387477833,1758741043049,-1000.0,0.00019921,2]
[387477835,1758741043058,-349.0,0.0002,2]
[387477837,1758741043067,-151.0,0.0002,2]
[387477839,1758741043077,-480.0,0.0002,2]
[387477841,1758741043085,-480.0,0.0002,2]
[387477842,1758741043095,-203.2,0.0002,2]
[387477844,1758741043105,-480.0,0.0002,2]
[387477846,1758741043114,-344.89077244,0.0002,2]
[387477848,1758741043123,-480.0,0.0002,2]
[387477850,1758741043132,-480.0,0.0002,2]
[387477852,1758741043141,-480.0,0.0002,2]
[387477854,1758741043151,-480.0,0.0002,2]
[387477856,1758741043160,-486.88,0.0002,2]
[387477858,1758741043169,-200.90059931,0.0002,2]
[387477860,1758741043178,-480.0,0.0002,2]
[387477862,1758741043187,-480.0,0.0002,2]
[387477864,1758741043196,-480.0,0.0002,2]
[387477866,1758741043205,-480.0,0.0002,2]
[387477868,1758741043215,-480.0,0.0002,2]
[387477870,1758741043224,-552.78800732,0.0002,2]
[387477872,1758741043233,-480.0,0.0002,2]
[387477874,1758741043242,-480.0,0.0002,2]
[387477876,1758741043251,-480.0,0.0002,2]
[387477878,1758741043261,-480.0,0.0002,2]
[387477880,1758741043270,-480.0,0.0002,2]
[387477882,1758741043279,-574.27,0.0002,2]
[387477884,1758741043289,-480.0,0.0002,2]
[387477886,1758741043298,-480.0,0.0002,2]
[387477889,1758741043307,-280.94,0.0002,2]
[387477891,1758741043315,-480.0,0.0002,2]
[387477893,1758741043327,-603.26,0.0002,2]
[387477895,1758741043336,-480.0,0.0002,2]
[387477897,1758741043346,-480.0,0.0002,2]
[387477899,1758741043355,-605.0556138,0.0002,2]
[387477901,1758741043364,-480.0,0.0002,2]
[387477903,1758741043374,-480.0,0.0002,2]
[387477905,1758741043385,-533.4,0.0002,2]
[387477907,1758741043394,-181.95274114,0.0002,2]
[387477909,1758741043403,-480.0,0.0002,2]
[387477911,1758741043412,-480.0,0.0002,2]
[387477913,1758741043423,-480.0,0.0002,2]
[387477915,1758741043432,-480.0,0.0002,2]
[387477917,1758741043441,-480.0,0.0002,2]
[387477919,1758741043451,-480.0,0.0002,2]
[387477922,1758741043470,-480.0,0.0002,2]
[387477925,1758741043483,-564.29743427,0.00020021,2]
[387477927,1758741043493,-480.0,0.00020172,2]
[387477929,1758741043503,-157.64,0.00020273,2]
[387477931,1758741043513,-480.0,0.00020273,2]
[387477933,1758741043523,-480.0,0.00020273,2]
[387477935,1758741043532,-480.0,0.00020273,2]
[387477937,1758741043542,-480.0,0.00020273,2]
[387477939,1758741043552,-480.0,0.00020273,2]
[387477941,1758741043561,-480.0,0.00020273,2]
[387477943,1758741043571,-480.0,0.00020273,2]
[387477945,1758741043581,-480.0,0.00020273,2]
[387477947,1758741043591,-480.0,0.00020273,2]
[387477949,1758741043601,-480.0,0.00020273,2]
[387477951,1758741043612,-480.0,0.00020273,2]
[387477953,1758741043622,-480.0,0.00020273,2]
[387477955,1758741043631,-480.0,0.00020273,2]
[387477957,1758741043641,-203.65,0.00020273,2]
[387477959,1758741043650,-480.0,0.00020273,2]
[387477961,1758741043660,-372.93551605,0.00020273,2]
[387477963,1758741043670,-285.34702971,0.00020273,2]
[387477966,1758741043680,-480.0,0.00020273,2]
[387477968,1758741043689,-485.5,0.00020273,2]
[387477970,1758741043699,-480.0,0.00020273,2]
[387477972,1758741043709,-480.0,0.00020273,2]
[387477974,1758741043719,-480.0,0.00020273,2]
[387477976,1758741043728,-151.0,0.00020274,2]
[387477978,1758741043738,-1000.0,0.00020321,2]
[387477980,1758741043748,-480.0,0.00020446,2]
[387477982,1758741043758,-717.74,0.00020538,3]
[387477984,1758741043768,-358.88,0.00020538,3]
[387477986,1758741043777,-480.0,0.00020547,2]
[387477988,1758741043787,-480.0,0.00020547,2]
[387477990,1758741043796,-480.0,0.00020547,2]
[387477992,1758741043807,-572.93,0.00020547,2]
[387477994,1758741043816,-480.0,0.00020547,2]
[387477996,1758741043826,-480.0,0.00020547,2]
[387477998,1758741043836,-480.0,0.00020547,2]
[387478000,1758741043849,-480.0,0.00020547,2]
[387478002,1758741043858,-480.0,0.00020547,2]
[387478004,1758741043867,-480.0,0.00020547,2]
[387478006,1758741043877,-574.29,0.00020547,2]
[387478008,1758741043886,-480.0,0.00020547,2]
[387478010,1758741043896,-480.0,0.00020547,2]
[387478012,1758741043905,-245.0,0.00020548,2]
[387478014,1758741043915,-416.19153877,0.00020663,2]
[387478016,1758741043924,-480.0,0.0002072,2]
[387478018,1758741043934,-480.0,0.00020821,2]
[387478020,1758741043943,-480.0,0.00020821,2]
[387478022,1758741043952,-480.0,0.00020821,2]
[387478024,1758741043962,-329.15,0.00020821,2]
[387478026,1758741043971,-302.0,0.00020897,2]
[387478028,1758741043980,-1742.91081947,0.00020972,2]
[387478030,1758741043990,-480.0,0.00021095,2]
[387478032,1758741043999,-345.33,0.00021095,2]
[387478034,1758741044009,-480.0,0.00021095,2]
[387478036,1758741044019,-480.0,0.00021369,2]
[387478039,1758741044028,-480.0,0.00021643,2]
[387478041,1758741044038,-480.0,0.00021917,2]
[387478043,1758741044048,-160.0,0.00021956,2]
[387478045,1758741044057,-233.62170814,0.00021956,2]
[387478047,1758741044066,-532.2324375,0.00021958,2]
[387478049,1758741044076,-3958.46,0.00022,2]
[387478051,1758741044086,-1742.91081947,0.00022044,2]
[387478053,1758741044095,-252.29352872,0.00022052,2]
[387478055,1758741044104,-416.19153877,0.00022053,2]
[387478057,1758741044113,-480.0,0.00022191,2]
[387478059,1758741044122,-151.0,0.000224,9]
[387478061,1758741044132,-480.0,0.00022465,2]
[387478063,1758741044141,-480.0,0.00022739,2]
[387478065,1758741044151,-480.0,0.00023013,2]
[387478067,1758741044160,-1742.91081947,0.00023116,2]
[387478069,1758741044169,-304.99652804,0.00023287,2]
[387478071,1758741044179,-666.08,0.00023287,2]
[387478073,1758741044189,-151.0,0.000234,9]
[387478075,1758741044199,-416.19153877,0.00023442,2]
[387478077,1758741044208,-258.047,0.00024031,5]
[387478079,1758741044217,-1742.91081947,0.00024187,2]
[387478081,1758741044227,-222.1467698,0.00024307,2]
[387478083,1758741044236,-151.0,0.000244,8]
[387478085,1758741044245,-250.0,0.00024474,2]
[387478087,1758741044254,-151.0,0.00024658,2]
[387478089,1758741044264,-175.21714761,0.00024832,2]
[387478091,1758741044273,-416.19153877,0.00024832,2]
[387478093,1758741044282,-460784.376056,0.000249,2]
[387478095,1758741044292,-151.0,0.00024932,2]
[387478097,1758741044301,-252.29352872,0.00025026,2]
[387478099,1758741044310,-666.08,0.00025205,4]
[387478101,1758741044320,-288.0,0.00025206,2]
[387478103,1758741044329,-4623.0,0.00025249,2]
[387478105,1758741044338,-410.0,0.00025249,2]
[387478107,1758741044347,-1742.91081947,0.00025259,3]
[387478109,1758741044357,-151.0,0.000254,12]
[387478111,1758741044366,-150.0,0.00025664,2]
[387478113,1758741044378,-978.0,0.00025664,2]
[387478115,1758741044387,-634.0,0.00025664,2]
[387478117,1758741044398,-2159.0,0.00025664,2]
[387478119,1758741044408,-826.218,0.00026077,2]
[387478121,1758741044419,-3958.46,0.000261,2]
[387478123,1758741044427,-151.09476238,0.00026109,2]
[387478125,1758741044437,-500.0,0.00026109,2]
[387478126,1758741044446,-500.0,0.00026109,2]
[387478129,1758741044456,-500.0,0.00026109,2]
[387478131,1758741044465,-500.0,0.00026109,2]
[387478133,1758741044475,-593.58246594,0.00026109,2]
[387478134,1758741044484,-302.0,0.00026109,2]
[387478137,1758741044494,-1742.91081947,0.00026331,5]
[387478139,1758741044504,-151.0,0.000264,17]
[387478141,1758741044514,-500.0,0.00026426,2]
[387478143,1758741044523,-17991.2143275,0.00026498,2]
[387478145,1758741044533,-150.01,0.00026601,7]